[Event "Titled Tuesday Blitz March 28 Early 2023"]
[White "salgadoLO"]
[Black "Baches Garcia, Guillermo"]
[BlackFideId "2209764"]
[WhiteElo "2212"]
[BlackElo "2455"]
[Result "0-1"]
[Round "04"]
[TimeControl "180+2"]
[Date "2023.03.28"]
[WhiteClock "0:00:04"]
[BlackClock "0:00:18"]

1. d4 {[%clk 0:03:00]}  Nf6 {[%clk 0:02:59]} 2. Bg5 {[%clk 0:03:00]}  e6 {[%clk 0:03:00]} 3. Nd2 {[%clk 0:02:58]}  c5 {[%clk 0:02:58]} 4. e4 {[%clk 0:02:58]}  cxd4 {[%clk 0:02:53]} 5. e5 {[%clk 0:02:59]}  Qa5 {[%clk 0:02:51]} 6. Nf3 {[%clk 0:02:59]}  Ne4 {[%clk 0:02:46]} 7. Bf4 {[%clk 0:02:54]}  g5 {[%clk 0:02:36]} 8. Bxg5 {[%clk 0:02:33]}  Nxg5 {[%clk 0:02:31]} 9. Nxg5 {[%clk 0:02:31]}  Qxe5+ {[%clk 0:02:31]} 10. Nge4 {[%clk 0:02:29]}  d5 {[%clk 0:02:24]} 11. f4 {[%clk 0:02:28]}  Qxf4 {[%clk 0:02:17]} 12. Ng3 {[%clk 0:02:25]}  Nc6 {[%clk 0:02:02]} 13. Bb5 {[%clk 0:02:22]}  a6 {[%clk 0:01:54]} 14. Bxc6+ {[%clk 0:02:17]}  bxc6 {[%clk 0:01:55]} 15. Qh5 {[%clk 0:02:10]}  Qe3+ {[%clk 0:01:44]} 16. Ne2 {[%clk 0:02:06]}  Bh6 {[%clk 0:01:30]} 17. O-O-O {[%clk 0:02:01]}  Qg5 {[%clk 0:01:23]} 18. Qf3 {[%clk 0:01:44]}  Qe3 {[%clk 0:01:22]} 19. Qh5 {[%clk 0:01:44]}  Rg8 {[%clk 0:01:18]} 20. Rhf1 {[%clk 0:01:35]}  Ra7 {[%clk 0:01:15]} 21. g3 {[%clk 0:01:21]}  a5 {[%clk 0:00:56]} 22. Nf4 {[%clk 0:01:17]}  Bxf4 {[%clk 0:00:47]} 23. Rxf4 {[%clk 0:01:02]}  Rg7 {[%clk 0:00:45]} 24. Rdf1 {[%clk 0:00:53]}  Ba6 {[%clk 0:00:43]} 25. Rh1 {[%clk 0:00:20]}  d3 {[%clk 0:00:41]} 26. c3 {[%clk 0:00:17]}  a4 {[%clk 0:00:36]} 27. a3 {[%clk 0:00:16]}  Rb7 {[%clk 0:00:34]} 28. Rb4 {[%clk 0:00:10]}  Rxb4 {[%clk 0:00:30]} 29. axb4 {[%clk 0:00:11]}  Bc4 {[%clk 0:00:26]} 30. Qh4 {[%clk 0:00:06]}  Qg5 {[%clk 0:00:23]} 31. Qh3 {[%clk 0:00:05]}  Qf5 {[%clk 0:00:22]} 32. Qg2 {[%clk 0:00:05]}  Rg4 {[%clk 0:00:21]} 33. Rf1 {[%clk 0:00:05]}  Qe5 {[%clk 0:00:21]} 34. Qf2 {[%clk 0:00:06]}  Rg7 {[%clk 0:00:20]} 35. Qb6 {[%clk 0:00:05]}  a3 {[%clk 0:00:20]} 36. Qb8+ {[%clk 0:00:04]}  Qxb8 {[%clk 0:00:18]} 0-1


[Site "https://www.chess.com"]

[Event "Titled Tuesday Blitz March 28 Early 2023"]
[White "Vafin, Ayrat"]
[Black "Sankalan Shah"]
[WhiteFideId "4146530"]
[BlackFideId "25600362"]
[WhiteElo "2317"]
[BlackElo "2118"]
[Result "1-0"]
[Round "04"]
[TimeControl "180+2"]
[Date "2023.03.28"]
[WhiteClock "0:00:13"]
[BlackClock "0:00:04"]

1. Nf3 {[%clk 0:03:00]}  Nf6 {[%clk 0:02:59]} 2. g3 {[%clk 0:03:01]}  e6 {[%clk 0:02:57]} 3. Bg2 {[%clk 0:03:00]}  d5 {[%clk 0:02:58]} 4. c4 {[%clk 0:03:00]}  Be7 {[%clk 0:02:58]} 5. b3 {[%clk 0:03:00]}  O-O {[%clk 0:02:57]} 6. Bb2 {[%clk 0:03:01]}  b6 {[%clk 0:02:57]} 7. O-O {[%clk 0:03:01]}  Bb7 {[%clk 0:02:57]} 8. e3 {[%clk 0:03:01]}  c5 {[%clk 0:02:57]} 9. Qe2 {[%clk 0:03:02]}  Nc6 {[%clk 0:02:56]} 10. Nc3 {[%clk 0:03:01]}  a6 {[%clk 0:02:54]} 11. Rfd1 {[%clk 0:03:00]}  dxc4 {[%clk 0:02:50]} 12. bxc4 {[%clk 0:03:00]}  Qc7 {[%clk 0:02:50]} 13. d3 {[%clk 0:02:59]}  Rab8 {[%clk 0:02:50]} 14. Rf1 {[%clk 0:02:58]}  Rfd8 {[%clk 0:02:48]} 15. Ne1 {[%clk 0:02:57]}  Ba8 {[%clk 0:02:47]} 16. a4 {[%clk 0:02:57]}  Na7 {[%clk 0:02:43]} 17. f4 {[%clk 0:02:55]}  Bxg2 {[%clk 0:02:41]} 18. Kxg2 {[%clk 0:02:56]}  b5 {[%clk 0:02:42]} 19. axb5 {[%clk 0:02:45]}  axb5 {[%clk 0:02:43]} 20. cxb5 {[%clk 0:02:41]}  Nxb5 {[%clk 0:02:43]} 21. Nxb5 {[%clk 0:02:41]}  Rxb5 {[%clk 0:02:44]} 22. Be5 {[%clk 0:02:31]}  Qb7+ {[%clk 0:02:31]} 23. Kg1 {[%clk 0:02:30]}  Nd5 {[%clk 0:02:29]} 24. g4 {[%clk 0:02:29]}  f6 {[%clk 0:02:23]} 25. e4 {[%clk 0:02:24]}  Nb4 {[%clk 0:02:09]} 26. Bc3 {[%clk 0:02:17]}  Qd7 {[%clk 0:01:59]} 27. Rf3 {[%clk 0:02:11]}  Nc6 {[%clk 0:01:53]} 28. Rh3 {[%clk 0:01:56]}  Nd4 {[%clk 0:01:48]} 29. Qf2 {[%clk 0:01:57]}  Rb3 {[%clk 0:01:40]} 30. Rc1 {[%clk 0:01:44]}  e5 {[%clk 0:01:25]} 31. Qa2 {[%clk 0:01:17]}  Qxg4+ {[%clk 0:01:00]} 32. Rg3 {[%clk 0:01:17]}  Ne2+ {[%clk 0:01:00]} 33. Kf2 {[%clk 0:01:07]}  Nxc1 {[%clk 0:00:58]} 34. Qxb3+ {[%clk 0:01:01]}  Nxb3 {[%clk 0:00:58]} 35. Rxg4 {[%clk 0:01:02]}  exf4 {[%clk 0:00:54]} 36. Rxf4 {[%clk 0:00:54]}  Nd4 {[%clk 0:00:52]} 37. Bxd4 {[%clk 0:00:51]}  cxd4 {[%clk 0:00:46]} 38. Nf3 {[%clk 0:00:46]}  Bc5 {[%clk 0:00:35]} 39. Rf5 {[%clk 0:00:46]}  Bb4 {[%clk 0:00:33]} 40. Rb5 {[%clk 0:00:40]}  Bc3 {[%clk 0:00:31]} 41. Nh4 {[%clk 0:00:39]}  g6 {[%clk 0:00:27]} 42. Rb7 {[%clk 0:00:38]}  Ra8 {[%clk 0:00:23]} 43. Nf3 {[%clk 0:00:33]}  Ra2+ {[%clk 0:00:19]} 44. Kg3 {[%clk 0:00:33]}  Ra1 {[%clk 0:00:16]} 45. e5 {[%clk 0:00:28]}  fxe5 {[%clk 0:00:15]} 46. Nxe5 {[%clk 0:00:27]}  Rg1+ {[%clk 0:00:12]} 47. Kf3 {[%clk 0:00:26]}  Rh1 {[%clk 0:00:12]} 48. Ng4 {[%clk 0:00:25]}  Rf1+ {[%clk 0:00:11]} 49. Ke4 {[%clk 0:00:25]}  h5 {[%clk 0:00:09]} 50. Ne5 {[%clk 0:00:25]}  Rg1 {[%clk 0:00:09]} 51. Kd5 {[%clk 0:00:21]}  g5 {[%clk 0:00:08]} 52. Ng6 {[%clk 0:00:20]}  g4 {[%clk 0:00:07]} 53. Ke5 {[%clk 0:00:20]}  Rf1 {[%clk 0:00:06]} 54. Nf4 {[%clk 0:00:18]}  h4 {[%clk 0:00:06]} 55. Nh5 {[%clk 0:00:18]}  Rf2 {[%clk 0:00:06]} 56. Nf6+ {[%clk 0:00:16]}  Kf8 {[%clk 0:00:02]} 57. Nxg4 {[%clk 0:00:16]}  Rg2 {[%clk 0:00:02]} 58. Kf5 {[%clk 0:00:15]}  h3 {[%clk 0:00:02]} 59. Rh7 {[%clk 0:00:15]}  Rd2 {[%clk 0:00:02]} 60. Rxh3 {[%clk 0:00:14]}  Rd1 {[%clk 0:00:02]} 61. Rh8+ {[%clk 0:00:14]}  Kf7 {[%clk 0:00:01]} 62. Rh7+ {[%clk 0:00:15]}  Kg8 {[%clk 0:00:02]} 63. Rb7 {[%clk 0:00:15]}  Rd2 {[%clk 0:00:01]} 64. Kg6 {[%clk 0:00:15]}  Kf8 {[%clk 0:00:01]} 65. h4 {[%clk 0:00:15]}  Ke8 {[%clk 0:00:02]} 66. h5 {[%clk 0:00:15]}  Kd8 {[%clk 0:00:03]} 67. h6 {[%clk 0:00:16]}  Kc8 {[%clk 0:00:03]} 68. h7 {[%clk 0:00:15]}  Rd1 {[%clk 0:00:04]} 69. Rg7 {[%clk 0:00:13]}  Rg1 {[%clk 0:00:04]} 70. h8=Q# {[%clk 0:00:13]} 1-0


[Site "https://www.chess.com"]

[Event "Titled Tuesday Blitz March 28 Early 2023"]
[White "Winkels, Marcel"]
[Black "Sowul, Bartosz"]
[WhiteFideId "1003887"]
[BlackFideId "1137590"]
[WhiteElo "1900"]
[BlackElo "2188"]
[Result "0-1"]
[Round "04"]
[TimeControl "180+2"]
[Date "2023.03.28"]
[WhiteClock "0:00:01"]
[BlackClock "0:00:17"]

1. d4 {[%clk 0:03:00]}  Nf6 {[%clk 0:02:59]} 2. Bf4 {[%clk 0:02:57]}  c5 {[%clk 0:02:57]} 3. e3 {[%clk 0:02:57]}  Qb6 {[%clk 0:02:57]} 4. Nc3 {[%clk 0:02:50]}  Qxb2 {[%clk 0:02:47]} 5. Nb5 {[%clk 0:02:49]}  Nd5 {[%clk 0:02:46]} 6. Bg3 {[%clk 0:02:26]}  a6 {[%clk 0:02:38]} 7. Rb1 {[%clk 0:02:20]}  Qxa2 {[%clk 0:02:35]} 8. e4 {[%clk 0:02:12]}  axb5 {[%clk 0:02:30]} 9. exd5 {[%clk 0:02:09]}  Qxd5 {[%clk 0:02:25]} 10. Rxb5 {[%clk 0:02:02]}  Qxd4 {[%clk 0:02:12]} 11. Qxd4 {[%clk 0:01:45]}  cxd4 {[%clk 0:02:13]} 12. Nf3 {[%clk 0:01:45]}  Nc6 {[%clk 0:02:12]} 13. Rb1 {[%clk 0:01:30]}  e6 {[%clk 0:02:02]} 14. Bb5 {[%clk 0:01:21]}  Bc5 {[%clk 0:01:55]} 15. O-O {[%clk 0:01:17]}  O-O {[%clk 0:01:55]} 16. Rfd1 {[%clk 0:01:17]}  Ra2 {[%clk 0:01:50]} 17. Bxc6 {[%clk 0:00:49]}  bxc6 {[%clk 0:01:50]} 18. Nxd4 {[%clk 0:00:50]}  Bxd4 {[%clk 0:01:32]} 19. Rxd4 {[%clk 0:00:48]}  d5 {[%clk 0:01:32]} 20. h4 {[%clk 0:00:40]}  c5 {[%clk 0:01:24]} 21. Rd3 {[%clk 0:00:37]}  Ba6 {[%clk 0:01:19]} 22. Rdb3 {[%clk 0:00:36]}  h6 {[%clk 0:01:16]} 23. Rb8 {[%clk 0:00:30]}  Rxb8 {[%clk 0:01:13]} 24. Rxb8+ {[%clk 0:00:29]}  Kh7 {[%clk 0:01:13]} 25. Ra8 {[%clk 0:00:26]}  Bc4 {[%clk 0:00:53]} 26. Rxa2 {[%clk 0:00:24]}  Bxa2 {[%clk 0:00:54]} 27. Bd6 {[%clk 0:00:23]}  c4 {[%clk 0:00:53]} 28. Kf1 {[%clk 0:00:23]}  Kg6 {[%clk 0:00:46]} 29. Ke1 {[%clk 0:00:23]}  Kh5 {[%clk 0:00:42]} 30. Bg3 {[%clk 0:00:18]}  c3 {[%clk 0:00:34]} 31. Kd1 {[%clk 0:00:18]}  Bc4 {[%clk 0:00:33]} 32. Be5 {[%clk 0:00:16]}  g6 {[%clk 0:00:27]} 33. Bxc3 {[%clk 0:00:15]}  Kxh4 {[%clk 0:00:27]} 34. Ke1 {[%clk 0:00:14]}  Kg4 {[%clk 0:00:26]} 35. Be5 {[%clk 0:00:13]}  h5 {[%clk 0:00:26]} 36. f3+ {[%clk 0:00:14]}  Kf5 {[%clk 0:00:25]} 37. Bd6 {[%clk 0:00:13]}  g5 {[%clk 0:00:24]} 38. Kf2 {[%clk 0:00:13]}  e5 {[%clk 0:00:20]} 39. g3 {[%clk 0:00:11]}  g4 {[%clk 0:00:18]} 40. fxg4+ {[%clk 0:00:11]}  hxg4 {[%clk 0:00:17]} 41. Bc7 {[%clk 0:00:10]}  Ke4 {[%clk 0:00:18]} 42. Ke1 {[%clk 0:00:08]}  f5 {[%clk 0:00:18]} 43. Kf2 {[%clk 0:00:07]}  Bb5 {[%clk 0:00:18]} 44. Bb8 {[%clk 0:00:06]}  d4 {[%clk 0:00:18]} 45. Bc7 {[%clk 0:00:06]}  Ba4 {[%clk 0:00:18]} 46. Ba5 {[%clk 0:00:03]}  Bxc2 {[%clk 0:00:18]} 47. Bd2 {[%clk 0:00:02]}  f4 {[%clk 0:00:19]} 48. Bc1 {[%clk 0:00:01]}  Ba4 {[%clk 0:00:17]} 0-1


[Site "https://www.chess.com"]

[Event "Titled Tuesday Blitz March 28 Early 2023"]
[White "ElDivis"]
[Black "Bongo Akanga Ndjila, Barthelemy"]
[BlackFideId "10609431"]
[WhiteElo "2448"]
[BlackElo "1768"]
[Result "1-0"]
[Round "04"]
[TimeControl "180+2"]
[Date "2023.03.28"]
[WhiteClock "0:00:12"]
[BlackClock "0:00:47"]

1. d4 {[%clk 0:03:00]}  d5 {[%clk 0:02:53]} 2. Nf3 {[%clk 0:02:56]}  e6 {[%clk 0:02:53]} 3. c4 {[%clk 0:02:55]}  a6 {[%clk 0:02:51]} 4. e3 {[%clk 0:02:54]}  Nf6 {[%clk 0:02:48]} 5. c5 {[%clk 0:02:51]}  Nc6 {[%clk 0:02:46]} 6. Be2 {[%clk 0:02:48]}  g6 {[%clk 0:02:46]} 7. O-O {[%clk 0:02:48]}  Bg7 {[%clk 0:02:47]} 8. a3 {[%clk 0:02:48]}  O-O {[%clk 0:02:42]} 9. b4 {[%clk 0:02:48]}  Bd7 {[%clk 0:02:39]} 10. Bb2 {[%clk 0:02:48]}  Na7 {[%clk 0:02:38]} 11. Nc3 {[%clk 0:02:47]}  Nb5 {[%clk 0:02:37]} 12. a4 {[%clk 0:02:46]}  Nxc3 {[%clk 0:02:37]} 13. Bxc3 {[%clk 0:02:47]}  b6 {[%clk 0:02:35]} 14. Ne5 {[%clk 0:02:40]}  Ne4 {[%clk 0:02:34]} 15. Bb2 {[%clk 0:02:33]}  bxc5 {[%clk 0:02:27]} 16. Nxd7 {[%clk 0:02:27]}  Qxd7 {[%clk 0:02:26]} 17. bxc5 {[%clk 0:02:28]}  Qc6 {[%clk 0:02:24]} 18. a5 {[%clk 0:02:20]}  Qd7 {[%clk 0:02:22]} 19. Qc2 {[%clk 0:02:18]}  Rfb8 {[%clk 0:02:21]} 20. Rfb1 {[%clk 0:02:14]}  Rb4 {[%clk 0:02:17]} 21. f3 {[%clk 0:02:03]}  Nf6 {[%clk 0:02:08]} 22. Bc3 {[%clk 0:02:02]}  Rxb1+ {[%clk 0:02:06]} 23. Rxb1 {[%clk 0:02:03]}  Qc6 {[%clk 0:02:05]} 24. Qb3 {[%clk 0:02:00]}  Nd7 {[%clk 0:01:59]} 25. Qb7 {[%clk 0:01:29]}  Qxb7 {[%clk 0:01:57]} 26. Rxb7 {[%clk 0:01:30]}  Nxc5 {[%clk 0:01:56]} 27. Rxc7 {[%clk 0:01:19]}  Na4 {[%clk 0:01:54]} 28. Be1 {[%clk 0:01:14]}  e5 {[%clk 0:01:47]} 29. dxe5 {[%clk 0:01:10]}  Bxe5 {[%clk 0:01:46]} 30. Rc6 {[%clk 0:01:07]}  d4 {[%clk 0:01:45]} 31. exd4 {[%clk 0:00:54]}  Bxd4+ {[%clk 0:01:44]} 32. Kf1 {[%clk 0:00:46]}  Nc5 {[%clk 0:01:44]} 33. Bb4 {[%clk 0:00:38]}  Ne6 {[%clk 0:01:38]} 34. Bxa6 {[%clk 0:00:32]}  Rb8 {[%clk 0:01:37]} 35. Rc8+ {[%clk 0:00:32]}  Rxc8 {[%clk 0:01:35]} 36. Bxc8 {[%clk 0:00:33]}  Nc7 {[%clk 0:01:33]} 37. a6 {[%clk 0:00:32]}  Kg7 {[%clk 0:01:30]} 38. Bd6 {[%clk 0:00:32]}  Nb5 {[%clk 0:01:30]} 39. Bb8 {[%clk 0:00:27]}  Ba7 {[%clk 0:01:27]} 40. Bxa7 {[%clk 0:00:21]}  Nxa7 {[%clk 0:01:27]} 41. Bd7 {[%clk 0:00:21]}  Kf6 {[%clk 0:01:28]} 42. Ke2 {[%clk 0:00:20]}  Ke7 {[%clk 0:01:28]} 43. Ba4 {[%clk 0:00:20]}  Nc8 {[%clk 0:01:24]} 44. Bc6 {[%clk 0:00:16]}  Kd6 {[%clk 0:01:23]} 45. Be8 {[%clk 0:00:15]}  f6 {[%clk 0:01:22]} 46. Ke3 {[%clk 0:00:08]}  g5 {[%clk 0:01:21]} 47. g3 {[%clk 0:00:07]}  h6 {[%clk 0:01:20]} 48. Bb5 {[%clk 0:00:07]}  Kc5 {[%clk 0:01:19]} 49. Bd3 {[%clk 0:00:07]}  Kb6 {[%clk 0:01:17]} 50. Ke4 {[%clk 0:00:08]}  Nd6+ {[%clk 0:01:17]} 51. Kd5 {[%clk 0:00:08]}  Ne8 {[%clk 0:01:09]} 52. Ke6 {[%clk 0:00:08]}  Nc7+ {[%clk 0:01:04]} 53. Kxf6 {[%clk 0:00:09]}  Nd5+ {[%clk 0:00:58]} 54. Kg6 {[%clk 0:00:09]}  Nb4 {[%clk 0:00:58]} 55. Be2 {[%clk 0:00:09]}  Nd5 {[%clk 0:00:56]} 56. Kxh6 {[%clk 0:00:09]}  Nc3 {[%clk 0:00:55]} 57. Bd3 {[%clk 0:00:09]}  Nd5 {[%clk 0:00:50]} 58. Kxg5 {[%clk 0:00:10]}  Nc7 {[%clk 0:00:46]} 59. f4 {[%clk 0:00:10]}  Kc5 {[%clk 0:00:47]} 60. f5 {[%clk 0:00:10]}  Kd4 {[%clk 0:00:48]} 61. Be2 {[%clk 0:00:10]}  Ke3 {[%clk 0:00:48]} 62. Bf1 {[%clk 0:00:10]}  Kf2 {[%clk 0:00:48]} 63. Bc4 {[%clk 0:00:10]}  Ke3 {[%clk 0:00:47]} 64. a7 {[%clk 0:00:11]}  Kd4 {[%clk 0:00:47]} 65. Be6 {[%clk 0:00:11]}  Kc5 {[%clk 0:00:47]} 66. Kf6 {[%clk 0:00:11]}  Kb6 {[%clk 0:00:46]} 67. Ke7 {[%clk 0:00:11]}  Kxa7 {[%clk 0:00:47]} 68. f6 {[%clk 0:00:12]} 1-0


[Site "https://www.chess.com"]

[Event "Titled Tuesday Blitz March 28 Early 2023"]
[White "Hindermann, Felix"]
[Black "Sanchez, German"]
[WhiteFideId "1305212"]
[BlackFideId "4403959"]
[WhiteElo "2206"]
[BlackElo "1816"]
[Result "0-1"]
[Round "04"]
[TimeControl "180+2"]
[Date "2023.03.28"]
[WhiteClock "0:00:54"]
[BlackClock "0:00:52"]

1. e4 {[%clk 0:03:00]}  c5 {[%clk 0:03:00]} 2. c3 {[%clk 0:03:01]}  d6 {[%clk 0:02:58]} 3. d4 {[%clk 0:03:01]}  cxd4 {[%clk 0:02:59]} 4. cxd4 {[%clk 0:03:01]}  Nf6 {[%clk 0:03:00]} 5. Nc3 {[%clk 0:03:01]}  g6 {[%clk 0:03:01]} 6. Nf3 {[%clk 0:03:02]}  Bg7 {[%clk 0:03:01]} 7. Be2 {[%clk 0:03:01]}  O-O {[%clk 0:03:01]} 8. O-O {[%clk 0:03:01]}  Nc6 {[%clk 0:03:01]} 9. Be3 {[%clk 0:03:01]}  Bg4 {[%clk 0:03:01]} 10. d5 {[%clk 0:03:00]}  Bxf3 {[%clk 0:03:02]} 11. Bxf3 {[%clk 0:03:00]}  Ne5 {[%clk 0:03:02]} 12. Be2 {[%clk 0:03:00]}  a6 {[%clk 0:03:02]} 13. Rc1 {[%clk 0:03:00]}  b5 {[%clk 0:03:01]} 14. f4 {[%clk 0:03:00]}  Nc4 {[%clk 0:03:01]} 15. Bxc4 {[%clk 0:03:00]}  bxc4 {[%clk 0:03:02]} 16. Bd4 {[%clk 0:02:56]}  Rb8 {[%clk 0:03:01]} 17. Rf2 {[%clk 0:02:56]}  h5 {[%clk 0:02:58]} 18. h3 {[%clk 0:02:55]}  Nd7 {[%clk 0:02:45]} 19. Bxg7 {[%clk 0:02:54]}  Kxg7 {[%clk 0:02:46]} 20. Qd4+ {[%clk 0:02:54]}  Kg8 {[%clk 0:02:47]} 21. Qxc4 {[%clk 0:02:51]}  Qb6 {[%clk 0:02:46]} 22. Qc6 {[%clk 0:02:40]}  Qe3 {[%clk 0:02:43]} 23. Nd1 {[%clk 0:02:15]}  Qe1+ {[%clk 0:02:10]} 24. Rf1 {[%clk 0:02:09]}  Qd2 {[%clk 0:02:02]} 25. Rc2 {[%clk 0:01:49]}  Qd4+ {[%clk 0:01:50]} 26. Nf2 {[%clk 0:01:44]}  Rfc8 {[%clk 0:01:21]} 27. Qxc8+ {[%clk 0:01:42]}  Rxc8 {[%clk 0:01:22]} 28. Rxc8+ {[%clk 0:01:42]}  Kg7 {[%clk 0:01:23]} 29. Rc7 {[%clk 0:01:31]}  Nc5 {[%clk 0:01:17]} 30. Rxe7 {[%clk 0:01:22]}  Kf8 {[%clk 0:01:13]} 31. Rc7 {[%clk 0:01:12]}  Nxe4 {[%clk 0:01:10]} 32. Rc2 {[%clk 0:01:03]}  h4 {[%clk 0:00:56]} 33. Re2 {[%clk 0:01:03]}  Ng3 {[%clk 0:00:53]} 34. Re4 {[%clk 0:00:54]}  Nxe4 {[%clk 0:00:52]} 0-1


[Site "https://www.chess.com"]

[Event "Titled Tuesday Blitz March 28 Early 2023"]
[White "Hajiyev, Kanan"]
[Black "Zampronha, Wladimir Camilo"]
[WhiteFideId "13404148"]
[BlackFideId "2103087"]
[WhiteElo "2103"]
[BlackElo "2176"]
[Result "1-0"]
[Round "04"]
[TimeControl "180+2"]
[Date "2023.03.28"]
[WhiteClock "0:00:31"]
[BlackClock "0:01:27"]

1. d3 {[%clk 0:02:56]}  c5 {[%clk 0:02:59]} 2. Nf3 {[%clk 0:02:56]}  d5 {[%clk 0:02:57]} 3. g3 {[%clk 0:02:55]}  Nc6 {[%clk 0:02:57]} 4. Bg2 {[%clk 0:02:55]}  e5 {[%clk 0:02:57]} 5. O-O {[%clk 0:02:56]}  Be7 {[%clk 0:02:52]} 6. c4 {[%clk 0:02:56]}  d4 {[%clk 0:02:49]} 7. Qa4 {[%clk 0:02:56]}  f6 {[%clk 0:02:45]} 8. a3 {[%clk 0:02:49]}  Bd7 {[%clk 0:02:44]} 9. Qc2 {[%clk 0:02:45]}  Bf5 {[%clk 0:02:41]} 10. Nbd2 {[%clk 0:02:29]}  Qd7 {[%clk 0:02:39]} 11. Ne4 {[%clk 0:02:26]}  Bxe4 {[%clk 0:02:31]} 12. dxe4 {[%clk 0:02:27]}  Bd6 {[%clk 0:02:32]} 13. Nh4 {[%clk 0:02:25]}  Nge7 {[%clk 0:02:31]} 14. f4 {[%clk 0:02:23]}  O-O {[%clk 0:02:29]} 15. e3 {[%clk 0:02:09]}  dxe3 {[%clk 0:02:26]} 16. Bxe3 {[%clk 0:02:08]}  Nd4 {[%clk 0:02:25]} 17. Bxd4 {[%clk 0:02:09]}  cxd4 {[%clk 0:02:26]} 18. b4 {[%clk 0:01:55]}  b6 {[%clk 0:02:24]} 19. Qd3 {[%clk 0:01:34]}  Rac8 {[%clk 0:02:17]} 20. Rac1 {[%clk 0:01:34]}  a5 {[%clk 0:02:12]} 21. Qb3 {[%clk 0:01:05]}  Kh8 {[%clk 0:02:09]} 22. f5 {[%clk 0:00:55]}  axb4 {[%clk 0:02:08]} 23. axb4 {[%clk 0:00:55]}  Nc6 {[%clk 0:02:09]} 24. c5 {[%clk 0:00:45]}  bxc5 {[%clk 0:02:05]} 25. bxc5 {[%clk 0:00:46]}  Be7 {[%clk 0:01:59]} 26. g4 {[%clk 0:00:46]}  Rc7 {[%clk 0:01:43]} 27. Ng6+ {[%clk 0:00:30]}  hxg6 {[%clk 0:01:27]} 28. Rf3 {[%clk 0:00:31]} 1-0


[Site "https://www.chess.com"]

[Event "Titled Tuesday Blitz March 28 Early 2023"]
[White "Davidson, Kevin"]
[Black "Reprintsev, Alexander"]
[WhiteFideId "2056810"]
[BlackFideId "14100541"]
[WhiteElo "2151"]
[BlackElo "2229"]
[Result "1-0"]
[Round "04"]
[TimeControl "180+2"]
[Date "2023.03.28"]
[WhiteClock "0:00:36"]
[BlackClock "0:01:02"]

1. e4 {[%clk 0:03:00]}  e5 {[%clk 0:02:53]} 2. Nf3 {[%clk 0:03:00]}  Nc6 {[%clk 0:02:53]} 3. Bb5 {[%clk 0:03:01]}  Bc5 {[%clk 0:02:52]} 4. c3 {[%clk 0:03:01]}  f5 {[%clk 0:02:51]} 5. d4 {[%clk 0:02:59]}  fxe4 {[%clk 0:02:50]} 6. dxc5 {[%clk 0:03:00]}  exf3 {[%clk 0:02:49]} 7. Qxf3 {[%clk 0:03:00]}  Qe7 {[%clk 0:02:38]} 8. Be3 {[%clk 0:02:51]}  Nf6 {[%clk 0:02:34]} 9. Nd2 {[%clk 0:02:49]}  O-O {[%clk 0:02:33]} 10. O-O {[%clk 0:02:46]}  d5 {[%clk 0:02:31]} 11. cxd6 {[%clk 0:02:46]}  cxd6 {[%clk 0:02:31]} 12. Bg5 {[%clk 0:02:27]}  h6 {[%clk 0:02:23]} 13. Bxc6 {[%clk 0:01:54]}  hxg5 {[%clk 0:02:22]} 14. Bd5+ {[%clk 0:01:39]}  Nxd5 {[%clk 0:02:21]} 15. Qxd5+ {[%clk 0:01:40]}  Be6 {[%clk 0:02:21]} 16. Qb5 {[%clk 0:01:32]}  a6 {[%clk 0:02:18]} 17. Qb4 {[%clk 0:01:30]}  Rae8 {[%clk 0:02:12]} 18. Ne4 {[%clk 0:01:20]}  d5 {[%clk 0:02:00]} 19. Qxe7 {[%clk 0:01:19]}  Rxe7 {[%clk 0:02:00]} 20. Nxg5 {[%clk 0:01:19]}  Bg4 {[%clk 0:01:57]} 21. f3 {[%clk 0:00:52]}  Rf5 {[%clk 0:01:53]} 22. h4 {[%clk 0:00:51]}  Bh5 {[%clk 0:01:47]} 23. Rad1 {[%clk 0:00:51]}  e4 {[%clk 0:01:41]} 24. g4 {[%clk 0:00:43]}  e3 {[%clk 0:01:29]} 25. Rfe1 {[%clk 0:00:38]}  Rxf3 {[%clk 0:01:04]} 26. Nxf3 {[%clk 0:00:37]}  Bxg4 {[%clk 0:01:04]} 27. Kg2 {[%clk 0:00:36]}  Rf7 {[%clk 0:01:02]} 28. Rxe3 {[%clk 0:00:36]} 1-0


[Site "https://www.chess.com"]

[Event "Titled Tuesday Blitz March 28 Early 2023"]
[White "Garrido, Denis"]
[Black "Urbina Perez, Juan Antonio"]
[WhiteFideId "601217"]
[BlackFideId "2217368"]
[WhiteElo "2283"]
[BlackElo "2197"]
[Result "1-0"]
[Round "04"]
[TimeControl "180+2"]
[Date "2023.03.28"]
[WhiteClock "0:00:14"]
[BlackClock "0:00:15"]

1. e4 {[%clk 0:03:00]}  e5 {[%clk 0:02:58]} 2. Nf3 {[%clk 0:02:59]}  Nc6 {[%clk 0:02:57]} 3. Bb5 {[%clk 0:02:59]}  a6 {[%clk 0:02:57]} 4. Ba4 {[%clk 0:02:59]}  Nf6 {[%clk 0:02:56]} 5. O-O {[%clk 0:02:58]}  b5 {[%clk 0:02:55]} 6. Bb3 {[%clk 0:02:58]}  Bc5 {[%clk 0:02:55]} 7. c3 {[%clk 0:02:58]}  d6 {[%clk 0:02:55]} 8. a4 {[%clk 0:02:57]}  Bb7 {[%clk 0:02:49]} 9. d4 {[%clk 0:02:56]}  Bb6 {[%clk 0:02:46]} 10. Be3 {[%clk 0:02:56]}  exd4 {[%clk 0:02:41]} 11. cxd4 {[%clk 0:02:55]}  O-O {[%clk 0:02:40]} 12. Nbd2 {[%clk 0:02:54]}  h6 {[%clk 0:02:30]} 13. d5 {[%clk 0:02:31]}  Na5 {[%clk 0:02:13]} 14. Bxb6 {[%clk 0:02:30]}  cxb6 {[%clk 0:02:12]} 15. axb5 {[%clk 0:02:26]}  Nxb3 {[%clk 0:02:09]} 16. Qxb3 {[%clk 0:02:26]}  a5 {[%clk 0:02:01]} 17. Nd4 {[%clk 0:02:21]}  Re8 {[%clk 0:02:00]} 18. Rfe1 {[%clk 0:02:21]}  Ng4 {[%clk 0:01:55]} 19. Nc6 {[%clk 0:02:18]}  Qf6 {[%clk 0:01:51]} 20. Nf3 {[%clk 0:02:13]}  Rac8 {[%clk 0:01:31]} 21. h3 {[%clk 0:02:11]}  Bxc6 {[%clk 0:01:28]} 22. bxc6 {[%clk 0:02:12]}  Ne5 {[%clk 0:01:27]} 23. Nxe5 {[%clk 0:02:11]}  Rxe5 {[%clk 0:01:26]} 24. Qxb6 {[%clk 0:02:09]}  Ree8 {[%clk 0:01:17]} 25. c7 {[%clk 0:02:06]}  Qe7 {[%clk 0:01:14]} 26. Rac1 {[%clk 0:02:01]}  h5 {[%clk 0:01:11]} 27. Qxa5 {[%clk 0:01:53]}  Qe5 {[%clk 0:01:08]} 28. Rc3 {[%clk 0:01:48]}  f5 {[%clk 0:01:04]} 29. Rce3 {[%clk 0:01:38]}  f4 {[%clk 0:01:04]} 30. Rc3 {[%clk 0:01:37]}  g5 {[%clk 0:01:00]} 31. Rb3 {[%clk 0:01:06]}  g4 {[%clk 0:00:56]} 32. hxg4 {[%clk 0:01:02]}  hxg4 {[%clk 0:00:57]} 33. Qc3 {[%clk 0:00:55]}  Qg5 {[%clk 0:00:53]} 34. e5 {[%clk 0:00:48]}  f3 {[%clk 0:00:46]} 35. exd6 {[%clk 0:00:41]}  Qf5 {[%clk 0:00:19]} 36. Rxe8+ {[%clk 0:00:29]}  Rxe8 {[%clk 0:00:20]} 37. Rb8 {[%clk 0:00:14]}  Qb1+ {[%clk 0:00:19]} 38. Kh2 {[%clk 0:00:14]}  Qh7+ {[%clk 0:00:20]} 39. Kg3 {[%clk 0:00:14]}  Qd7 {[%clk 0:00:17]} 40. Rxe8+ {[%clk 0:00:14]}  Qxe8 {[%clk 0:00:16]} 41. c8=Q {[%clk 0:00:14]}  fxg2 {[%clk 0:00:14]} 42. Qxe8+ {[%clk 0:00:14]}  Kh7 {[%clk 0:00:15]} 43. Qch8# {[%clk 0:00:14]} 1-0


[Site "https://www.chess.com"]